fUSD/lending_fUSD_20240607
["ID","MTS","AMOUNT","RATE_DAILY","PERIOD"]
[328751626,1717765850039,-500.0,0.0002999,4]
[328751627,1717765850048,-617.9323727,0.0002999,4]
[328751628,1717765850058,-500.0,0.0002999,4]
[328751629,1717765850067,-500.0,0.0002999,4]
[328751630,1717765850076,-500.0,0.0002999,4]
[328751631,1717765850086,-500.0,0.0002999,4]
[328751632,1717765850096,-500.0,0.0002999,4]
[328751633,1717765850105,-500.0,0.0002999,4]
[328751634,1717765850114,-500.0,0.0002999,4]
[328751635,1717765850123,-500.0,0.0002999,4]
[328751636,1717765850133,-500.0,0.0002999,4]
[328751637,1717765850142,-500.0,0.0002999,4]
[328751638,1717765850151,-500.0,0.0002999,4]
[328751639,1717765850161,-500.0,0.0002999,4]
[328751640,1717765850171,-500.0,0.0002999,4]
[328751641,1717765850180,-500.0,0.0002999,4]
[328751642,1717765850190,-500.0,0.0002999,4]
[328751643,1717765850199,-500.0,0.0002999,4]
[328751644,1717765850208,-500.0,0.0002999,4]
[328751645,1717765850218,-500.0,0.0002999,4]
[328751646,1717765850227,-500.0,0.0002999,4]
[328751647,1717765850236,-500.0,0.0002999,4]
[328751648,1717765850245,-500.0,0.0002999,4]
[328751649,1717765850254,-500.0,0.0002999,4]
[328751650,1717765850265,-500.0,0.0002999,4]
[328751651,1717765850277,-500.0,0.0002999,4]
[328751652,1717765850286,-500.0,0.0002999,4]
[328751653,1717765850296,-500.0,0.0002999,4]
[328751654,1717765850305,-500.0,0.0002999,4]
[328751655,1717765850316,-500.0,0.0002999,4]
[328751656,1717765850325,-500.0,0.0002999,4]
[328751657,1717765850335,-500.0,0.0002999,4]
[328751658,1717765850346,-500.0,0.0002999,4]
[328751659,1717765850355,-500.0,0.0002999,4]
[328751660,1717765850366,-500.0,0.0002999,4]
[328751661,1717765850376,-500.0,0.0002999,4]
[328751662,1717765850385,-500.0,0.0002999,4]
[328751663,1717765850394,-500.0,0.0002999,4]
[328751664,1717765850403,-500.0,0.0002999,4]
[328751665,1717765850413,-500.0,0.0002999,4]
[328751666,1717765850423,-1747.74,0.0002999,4]
[328751667,1717765850432,-1747.74,0.0002999,4]
[328751668,1717765850444,-844.59,0.0002999,4]
[328751669,1717765850453,-844.59,0.0002999,4]
[328751670,1717765850463,-500.0,0.0002999,4]
[328751671,1717765850472,-500.0,0.0002999,4]
[328751672,1717765850481,-525.7,0.0002999,4]
[328751673,1717765850491,-525.7,0.0002999,4]
[328751674,1717765850500,-500.0,0.0002999,4]
[328751675,1717765850510,-500.0,0.0002999,4]
[328751676,1717765850521,-299.43400089,0.0002999,4]
[328751677,1717765850531,-500.0,0.0002999,4]
[328751678,1717765850541,-500.0,0.0002999,4]
[328751679,1717765850551,-500.0,0.0002999,4]
[328751680,1717765850560,-500.0,0.0002999,4]
[328751681,1717765850570,-500.0,0.0002999,4]
[328751682,1717765850580,-500.0,0.0002999,4]
[328751683,1717765850589,-500.0,0.0002999,4]
[328751684,1717765850599,-500.0,0.0002999,4]
[328751685,1717765850608,-517.45193198,0.0002999,4]
[328751686,1717765850617,-500.0,0.0002999,4]
[328751687,1717765850626,-500.0,0.0002999,4]
[328751688,1717765850635,-500.0,0.0002999,4]
[328751689,1717765850644,-500.0,0.0002999,4]
[328751690,1717765850654,-1221.95,0.0002999,4]
[328751691,1717765850664,-1221.95,0.0002999,4]
[328751692,1717765850673,-500.0,0.0002999,4]
[328751693,1717765850682,-500.0,0.0002999,4]
[328751694,1717765850693,-500.0,0.0002999,4]
[328751695,1717765850703,-500.0,0.0002999,4]
[328751696,1717765850712,-7299.68,0.0002999,4]
[328751697,1717765850722,-7299.68,0.0002999,4]
[328751698,1717765850731,-368.37393603,0.0002999,4]
[328751699,1717765850740,-3404.37,0.0002999,4]
[328751700,1717765850750,-3404.37,0.0002999,4]
[328751701,1717765850759,-1013.36,0.0002999,4]
[328751702,1717765850771,-500.0,0.0002999,4]
[328751703,1717765850780,-1013.36,0.0002999,4]
[328751704,1717765850790,-500.0,0.0002999,4]
[328751705,1717765850799,-783.93,0.0002999,4]
[328751706,1717765850808,-783.93,0.0002999,4]
[328751707,1717765850818,-500.0,0.0002999,4]
[328751708,1717765850827,-500.0,0.0002999,4]
[328751709,1717765850836,-770.19,0.0002999,4]
[328751710,1717765850845,-770.19,0.0002999,4]
[328751711,1717765850855,-3314.7,0.0002999,4]
[328751712,1717765850864,-3314.7,0.0002999,4]
[328751713,1717765850873,-1489.28,0.0002999,4]
[328751714,1717765850882,-1489.28,0.0002999,4]
[328751715,1717765850892,-1173.85,0.0002999,4]
[328751716,1717765850901,-1173.85,0.0002999,4]
[328751717,1717765850912,-500.0,0.0002999,4]
[328751718,1717765850922,-500.0,0.0002999,4]
[328751719,1717765850932,-879.29,0.0002999,4]
[328751720,1717765850944,-1018.45,0.0002999,4]
[328751721,1717765850953,-879.29,0.0002999,4]
[328751722,1717765850963,-1018.45,0.0002999,4]
[328751723,1717765850972,-3209.29,0.0002999,4]
[328751724,1717765850981,-3209.29,0.0002999,4]
[328751725,1717765850990,-782.6,0.0002999,4]
[328751726,1717765851000,-782.6,0.0002999,4]
[328751727,1717765851010,-500.0,0.0002999,4]
[328751728,1717765851019,-500.0,0.0002999,4]
[328751729,1717765851028,-500.0,0.0002999,4]
[328751730,1717765851039,-500.0,0.0002999,4]
[328751731,1717765851048,-500.0,0.0002999,4]
[328751732,1717765851058,-500.0,0.0002999,4]
[328751733,1717765851067,-1779.73,0.0002999,4]
[328751734,1717765851078,-1779.73,0.0002999,4]
[328751735,1717765851088,-1454.56,0.0002999,4]
[328751736,1717765851097,-1454.56,0.0002999,4]
[328751737,1717765851106,-1795.58,0.0002999,4]
[328751738,1717765851117,-1795.58,0.0002999,4]
[328751739,1717765851127,-500.0,0.0002999,4]
[328751740,1717765851138,-500.0,0.0002999,4]
[328751741,1717765851149,-1333.0,0.0002999,4]
[328751742,1717765851159,-1333.0,0.0002999,4]
[328751743,1717765851169,-500.0,0.0002999,4]
[328751744,1717765851179,-1562.91,0.0002999,4]
[328751745,1717765851188,-500.0,0.0002999,4]
[328751746,1717765851197,-1562.91,0.0002999,4]
[328751747,1717765851206,-500.0,0.0002999,4]
[328751748,1717765851216,-500.0,0.0002999,4]
[328751749,1717765851226,-500.0,0.0002999,4]
[328751750,1717765851238,-500.0,0.0002999,4]
[328751751,1717765851260,-500.0,0.0002999,4]
[328751752,1717765851276,-500.0,0.0002999,4]
[328751753,1717765851285,-500.0,0.0002999,4]
[328751754,1717765851295,-500.0,0.0002999,4]
[328751755,1717765851304,-660.9,0.0002999,4]
[328751756,1717765851314,-660.9,0.0002999,4]
[328751757,1717765851323,-792.01,0.0002999,4]
[328751758,1717765851332,-792.01,0.0002999,4]
[328751759,1717765851344,-500.0,0.0002999,4]
[328751760,1717765851361,-473.45,0.0002999,4]
[328751761,1717765851370,-500.0,0.0002999,4]
[328751762,1717765851379,-500.0,0.0002999,4]
[328751763,1717765851388,-500.0,0.0002999,4]
[328751764,1717765851397,-500.0,0.0002999,4]
[328751765,1717765851406,-500.0,0.0002999,4]
[328751766,1717765851416,-500.0,0.0002999,4]
[328751767,1717765851426,-500.0,0.0002999,4]
[328751768,1717765851438,-500.0,0.0002999,4]
[328751769,1717765851448,-500.0,0.0002999,4]
[328751770,1717765851458,-500.0,0.0002999,4]
[328751771,1717765851468,-500.0,0.0002999,4]
[328751772,1717765851477,-500.0,0.0002999,4]
[328751773,1717765851487,-697.92,0.0002999,4]
[328751774,1717765851496,-500.0,0.0002999,4]
[328751775,1717765851507,-890.6642126,0.0002999,2]
[328751776,1717765851516,-155.0,0.00029991,5]
[328751777,1717765851526,-862.84702765,0.00029991,2]
[328751778,1717765851537,-475940.7756149,0.00029991,2]
[328751779,1717765851546,-500.0,0.00029991,4]
[328751780,1717765851556,-500.0,0.00029991,4]
[328751781,1717765851565,-320.04362042,0.00029991,4]
[328751782,1717765851574,-500.0,0.00029991,4]
[328751783,1717765851584,-500.0,0.00029991,4]
[328751784,1717765851593,-500.0,0.00029991,4]
[328751785,1717765851602,-500.0,0.00029991,4]
[328751786,1717765851612,-500.0,0.00029991,4]
[328751787,1717765851621,-500.0,0.00029991,4]
[328751788,1717765851630,-500.0,0.00029991,4]
[328751789,1717765851639,-500.0,0.00029991,4]
[328751790,1717765851650,-500.0,0.00029991,4]
[328751791,1717765851660,-500.0,0.00029991,4]
[328751792,1717765851669,-500.0,0.00029991,4]
[328751793,1717765851680,-500.0,0.00029991,4]
[328751794,1717765851692,-500.0,0.00029991,4]
[328751795,1717765851701,-500.0,0.00029991,4]
[328751796,1717765851710,-500.0,0.00029991,4]
[328751797,1717765851719,-500.0,0.00029991,4]
[328751798,1717765851728,-500.0,0.00029991,4]
[328751799,1717765851737,-500.0,0.00029991,4]
[328751800,1717765851746,-500.0,0.00029991,4]
[328751801,1717765851756,-500.0,0.00029991,4]
[328751802,1717765851766,-500.0,0.00029991,4]
[328751803,1717765851776,-500.0,0.00029991,4]
[328751804,1717765851785,-500.0,0.00029991,4]
[328751805,1717765851794,-287.59108566,0.00029991,4]
[328751806,1717765851804,-500.0,0.00029991,4]
[328751807,1717765851812,-500.0,0.00029991,4]
[328751808,1717765851822,-1747.74,0.00029991,4]
[328751809,1717765851831,-844.59,0.00029991,4]
[328751810,1717765851840,-500.0,0.00029991,4]
[328751811,1717765851850,-525.7,0.00029991,4]
[328751812,1717765851860,-500.0,0.00029991,4]
[328751813,1717765851874,-212.88748367,0.00029991,4]
[328751814,1717765851883,-500.0,0.00029991,4]
[328751815,1717765851892,-500.0,0.00029991,4]
[328751816,1717765851902,-500.0,0.00029991,4]
[328751817,1717765851911,-500.0,0.00029991,4]
[328751818,1717765851920,-519.26,0.00029991,4]
[328751819,1717765851930,-1221.95,0.00029991,4]
[328751820,1717765851942,-482.77892999,0.00029991,4]
[328751821,1717765851951,-500.0,0.00029991,4]
[328751822,1717765851960,-7299.68,0.00029991,4]
[328751823,1717765851970,-3404.37,0.00029991,4]
[328751824,1717765851980,-500.0,0.00029991,4]
[328751825,1717765851990,-1013.36,0.00029991,4]
[328751826,1717765851999,-783.93,0.00029991,4]
[328751827,1717765852009,-500.0,0.00029991,4]
[328751828,1717765852019,-770.19,0.00029991,4]
[328751829,1717765852029,-3314.7,0.00029991,4]
[328751830,1717765852038,-1489.28,0.00029991,4]
[328751831,1717765852048,-1173.85,0.00029991,4]
[328751832,1717765852057,-500.0,0.00029991,4]
[328751833,1717765852066,-879.29,0.00029991,4]
[328751834,1717765852076,-1018.45,0.00029991,4]
[328751835,1717765852085,-3209.29,0.00029991,4]
[328751836,1717765852095,-782.6,0.00029991,4]
[328751837,1717765852104,-500.0,0.00029991,4]
[328751838,1717765852113,-500.0,0.00029991,4]
[328751839,1717765852122,-213.89,0.00029991,4]
[328751840,1717765852133,-1779.73,0.00029991,4]
[328751841,1717765852142,-1454.56,0.00029991,4]
[328751842,1717765852151,-1795.58,0.00029991,4]
[328751843,1717765852161,-500.0,0.00029991,4]
[328751844,1717765852171,-1333.0,0.00029991,4]
[328751845,1717765852180,-500.0,0.00029991,4]
[328751846,1717765852191,-1562.91,0.00029991,4]
[328751847,1717765852201,-500.0,0.00029991,4]
[328751848,1717765852211,-500.0,0.00029991,4]
[328751849,1717765852219,-500.0,0.00029991,4]
[328751850,1717765852229,-500.0,0.00029991,4]
[328751851,1717765852239,-660.9,0.00029991,4]
[328751852,1717765852402,-792.01,0.00029991,4]
[328751853,1717765852413,-792.01,0.00029991,4]
[328751854,1717765852423,-792.01,0.00029991,4]
[328751855,1717765852433,-792.01,0.00029991,4]
[328751856,1717765852445,-500.0,0.00029991,4]
[328751857,1717765852455,-500.0,0.00029991,4]
[328751858,1717765852464,-500.0,0.00029991,4]
[328751859,1717765852473,-500.0,0.00029991,4]
[328751860,1717765852483,-500.0,0.00029991,4]
[328751861,1717765852492,-500.0,0.00029991,4]
[328751862,1717765852502,-500.0,0.00029991,4]
[328751863,1717765852511,-500.0,0.00029991,4]
[328751864,1717765852520,-500.0,0.00029991,4]
[328751865,1717765852530,-500.0,0.00029991,4]
[328751866,1717765852539,-500.0,0.00029991,4]
[328751867,1717765852549,-150.0,0.00029992,10]
[328751868,1717765852559,-754691.85845408,0.00029992,13]
[328751869,1717765852569,-150.0,0.00029992,10]
[328751870,1717765852578,-208.72501019,0.00029992,2]
[328751871,1717765852587,-1472.26358788,0.00029992,2]
[328751872,1717765852596,-500.0,0.00029992,4]
[328751873,1717765852606,-500.0,0.00029992,4]
[328751874,1717765852615,-500.0,0.00029992,4]
[328751875,1717765852624,-162.64,0.00029992,4]
[328751876,1717765852633,-500.0,0.00029992,4]
[328751877,1717765852643,-500.0,0.00029992,4]
[328751878,1717765852652,-500.0,0.00029992,4]
[328751879,1717765852663,-500.0,0.00029992,4]
[328751880,1717765852674,-500.0,0.00029992,4]
[328751881,1717765852683,-500.0,0.00029992,4]
[328751882,1717765852694,-363.17,0.00029992,4]
[328751883,1717765852703,-500.0,0.00029992,4]
[328751884,1717765852712,-500.0,0.00029992,4]
[328751885,1717765852721,-500.0,0.00029992,4]
[328751886,1717765852730,-218.2,0.00029992,4]
[328751887,1717765852739,-500.0,0.00029992,4]
[328751888,1717765852750,-500.0,0.00029992,4]
[328751889,1717765852761,-500.0,0.00029992,4]
[328751890,1717765852771,-500.0,0.00029992,4]
[328751891,1717765852780,-500.0,0.00029992,4]
[328751892,1717765852789,-500.0,0.00029992,4]
[328751893,1717765852799,-600.92469118,0.00029992,4]
[328751894,1717765852809,-500.0,0.00029992,4]
[328751895,1717765852820,-550.40680921,0.00029992,4]
[328751896,1717765852829,-500.0,0.00029992,4]
[328751897,1717765852840,-500.0,0.00029992,4]
[328751898,1717765852851,-500.0,0.00029992,4]
[328751899,1717765852860,-500.0,0.00029992,4]
[328751900,1717765852869,-500.0,0.00029992,4]
[328751901,1717765852878,-500.0,0.00029992,4]
[328751902,1717765852887,-500.0,0.00029992,4]
[328751903,1717765852897,-500.0,0.00029992,4]
[328751904,1717765852906,-525.36,0.00029992,4]
[328751905,1717765852915,-500.0,0.00029992,4]
[328751906,1717765852924,-500.0,0.00029992,4]
[328751907,1717765852935,-500.0,0.00029992,4]
[328751908,1717765852947,-500.0,0.00029992,4]
[328751909,1717765852957,-500.0,0.00029992,4]
[328751910,1717765852966,-500.0,0.00029992,4]
[328751911,1717765852975,-500.0,0.00029992,4]
[328751912,1717765852984,-500.0,0.00029992,4]
[328751913,1717765852994,-500.0,0.00029992,4]
[328751914,1717765853003,-1747.74,0.00029992,4]
[328751915,1717765853012,-844.59,0.00029992,4]
[328751916,1717765853021,-500.0,0.00029992,4]
[328751917,1717765853031,-173.93686129,0.00029992,4]
[328751918,1717765853040,-525.7,0.00029992,4]
[328751919,1717765853049,-525.7,0.00029992,4]
[328751920,1717765853058,-525.7,0.00029992,4]
[328751921,1717765853067,-525.7,0.00029992,4]
[328751922,1717765853077,-500.0,0.00029992,4]
[328751923,1717765853086,-500.0,0.00029992,4]
[328751924,1717765853095,-500.0,0.00029992,4]
[328751925,1717765853104,-500.0,0.00029992,4]
[328751926,1717765853113,-500.0,0.00029992,4]
[328751927,1717765853126,-500.0,0.00029992,4]
[328751928,1717765853138,-500.0,0.00029992,4]
[328751929,1717765853148,-500.0,0.00029992,4]
[328751930,1717765853158,-500.0,0.00029992,4]
[328751931,1717765853168,-500.0,0.00029992,4]
[328751932,1717765853179,-500.0,0.00029992,4]
[328751933,1717765853190,-500.0,0.00029992,4]
[328751934,1717765853200,-500.0,0.00029992,4]
[328751935,1717765853209,-500.0,0.00029992,4]
[328751936,1717765853218,-500.0,0.00029992,4]
[328751937,1717765853229,-500.0,0.00029992,4]
[328751938,1717765853239,-1221.95,0.00029992,4]
[328751939,1717765853250,-1221.95,0.00029992,4]
[328751940,1717765853259,-1221.95,0.00029992,4]
[328751941,1717765853274,-1221.95,0.00029992,4]
[328751942,1717765853283,-342.31,0.00029992,4]
[328751943,1717765853294,-7299.68,0.00029992,4]
[328751944,1717765853307,-7299.68,0.00029992,4]
[328751945,1717765853317,-7299.68,0.00029992,4]
[328751946,1717765853326,-7299.68,0.00029992,4]
[328751947,1717765853336,-3404.37,0.00029992,4]
[328751948,1717765853348,-3404.37,0.00029992,4]
[328751949,1717765853357,-3404.37,0.00029992,4]
[328751950,1717765853368,-3404.37,0.00029992,4]
[328751951,1717765853377,-500.0,0.00029992,4]
[328751952,1717765853387,-1013.36,0.00029992,4]
[328751953,1717765853397,-500.0,0.00029992,4]
[328751954,1717765853406,-500.0,0.00029992,4]
[328751955,1717765853416,-500.0,0.00029992,4]
[328751956,1717765853425,-783.93,0.00029992,4]
[328751957,1717765853435,-783.93,0.00029992,4]
[328751958,1717765853448,-174.24147902,0.00029992,4]
[328751959,1717765853458,-783.93,0.00029992,4]
[328751960,1717765853468,-783.93,0.00029992,4]
[328751961,1717765853477,-770.19,0.00029992,4]
[328751962,1717765853487,-770.19,0.00029992,4]
[328751963,1717765853496,-770.19,0.00029992,4]
[328751964,1717765853506,-770.19,0.00029992,4]
[328751965,1717765853516,-3314.7,0.00029992,4]
[328751966,1717765853526,-3314.7,0.00029992,4]
[328751967,1717765853535,-3314.7,0.00029992,4]
[328751968,1717765853546,-3314.7,0.00029992,4]
[328751969,1717765853556,-1489.28,0.00029992,4]
[328751970,1717765853567,-1489.28,0.00029992,4]
[328751971,1717765853576,-1489.28,0.00029992,4]
[328751972,1717765853586,-1489.28,0.00029992,4]
[328751973,1717765853596,-1173.85,0.00029992,4]
[328751974,1717765853606,-1173.85,0.00029992,4]
[328751975,1717765853616,-1173.85,0.00029992,4]
[328751976,1717765853625,-1173.85,0.00029992,4]
[328751977,1717765853636,-500.0,0.00029992,4]
[328751978,1717765853645,-1018.45,0.00029992,4]
[328751979,1717765853655,-879.29,0.00029992,4]
[328751980,1717765853665,-1018.45,0.00029992,4]
[328751981,1717765853675,-879.29,0.00029992,4]
[328751982,1717765853685,-1018.45,0.00029992,4]
[328751983,1717765853698,-879.29,0.00029992,4]
[328751984,1717765853708,-1018.45,0.00029992,4]
[328751985,1717765853717,-879.29,0.00029992,4]
[328751986,1717765853727,-3209.29,0.00029992,4]
[328751987,1717765853736,-782.6,0.00029992,4]
[328751988,1717765853746,-500.0,0.00029992,4]
[328751989,1717765853756,-500.0,0.00029992,4]
[328751990,1717765853765,-500.0,0.00029992,4]
[328751991,1717765853775,-500.0,0.00029992,4]
[328751992,1717765853784,-479.6161137,0.00029992,4]
[328751993,1717765853792,-1779.73,0.00029992,4]
[328751994,1717765853802,-1454.56,0.00029992,4]
[328751995,1717765853811,-1454.56,0.00029992,4]
[328751996,1717765853821,-1454.56,0.00029992,4]
[328751997,1717765853830,-1454.56,0.00029992,4]
[328751998,1717765853839,-1795.58,0.00029992,4]
[328751999,1717765853849,-500.0,0.00029992,4]
[328752000,1717765853859,-1333.0,0.00029992,4]
[328752001,1717765853869,-1333.0,0.00029992,4]
[328752002,1717765853879,-1333.0,0.00029992,4]
[328752003,1717765853888,-1333.0,0.00029992,4]
[328752004,1717765853899,-500.0,0.00029992,4]
[328752005,1717765853909,-1562.91,0.00029992,4]
[328752006,1717765853918,-500.0,0.00029992,4]
[328752007,1717765853928,-500.0,0.00029992,4]
[328752008,1717765853937,-500.0,0.00029992,4]
[328752009,1717765853948,-500.0,0.00029992,4]
[328752010,1717765853958,-500.0,0.00029992,4]
[328752011,1717765853966,-508.52371374,0.00029992,4]
[328752012,1717765853975,-660.9,0.00029992,4]
[328752013,1717765853985,-792.01,0.00029992,4]
[328752014,1717765853995,-500.0,0.00029992,4]
[328752015,1717765854007,-221.64131949,0.00029992,4]
[328752016,1717765854016,-500.0,0.00029992,4]
[328752017,1717765854026,-500.0,0.00029992,4]
[328752018,1717765854035,-500.0,0.00029992,4]
[328752019,1717765854045,-500.0,0.00029992,4]
[328752020,1717765854055,-500.0,0.00029992,4]
[328752021,1717765854064,-500.0,0.00029992,4]
[328752022,1717765854074,-500.0,0.00029992,4]
[328752023,1717765854084,-500.0,0.00029992,4]
[328752024,1717765854094,-500.0,0.00029992,4]
[328752025,1717765854103,-77139.8115604,0.00029993,4]
[328752026,1717765854251,-3194.13216861,0.00029993,4]
[328752027,1717765854305,-526.07,0.000298,2]
[328752028,1717765854316,-471.59092211,0.0002999,4]
[328752029,1717765854327,-28.40907789,0.0002999,4]
[328752030,1717765854337,-697.92,0.0002999,4]
[328752031,1717765854348,-697.92,0.00029991,4]
[328752032,1717765854359,-201.54476801,0.00029991,4]
[328752033,1717765854371,-261.62383509,0.00029991,4]
[328752034,1717765854387,-36.8313969,0.00029991,4]
[328752035,1717765854396,-500.0,0.00029992,4]
[328752036,1717765854406,-697.92,0.00029992,4]
[328752037,1717765854417,-372.09650525,0.00029992,4]
[328752038,1717765854429,-325.82349475,0.00029992,4]
[328752039,1717765854438,-4278.59475725,0.00029993,4]
[328752040,1717765854451,-4077.0870464,0.00029993,4]
[328752041,1717765854463,-5143.15783322,0.00029993,4]
[328752042,1717765854475,-463.3999995,0.00029993,4]
[328752043,1717765854487,-208460.31863112,0.00029993,4]
[328752044,1717765854496,-2000.0,0.00029993,2]
[328752045,1717765854506,-200.0,0.00029993,2]
[328752046,1717765854516,-200.0,0.00029993,2]
[328752047,1717765854526,-151.0,0.00029993,7]
[328752048,1717765854536,-150.0,0.00029994,10]
[328752049,1717765854546,-156.90340087,0.00029994,10]
[328752050,1717765854556,-500.0,0.00029994,4]
[328752051,1717765854565,-500.0,0.00029994,4]
[328752052,1717765854575,-783.93,0.00029994,4]
[328752053,1717765854585,-770.19,0.00029994,4]
[328752054,1717765854595,-1489.28,0.00029994,4]
[328752055,1717765854605,-1173.85,0.00029994,4]
[328752056,1717765854614,-879.29,0.00029994,4]
[328752057,1717765854624,-1454.56,0.00029994,4]
[328752058,1717765854633,-792.01,0.00029994,4]
[328752059,1717765854644,-500.0,0.00029994,4]
[328752060,1717765854657,-500.0,0.00029994,4]
[328752061,1717765854680,-356.30268094,0.00029995,2]
[328752062,1717765854692,-50528.07547368,0.00029995,7]
[328752063,1717765854702,-302.61221956,0.00029995,2]
[328752064,1717765854712,-500.0,0.00029995,4]
[328752065,1717765854722,-500.0,0.00029995,4]
[328752066,1717765854732,-500.0,0.00029995,4]
[328752067,1717765854741,-500.0,0.00029995,4]
[328752068,1717765854751,-500.0,0.00029995,4]
[328752069,1717765854761,-500.0,0.00029995,4]
[328752070,1717765854773,-500.0,0.00029995,4]
[328752071,1717765854793,-500.0,0.00029995,4]
[328752072,1717765854804,-500.0,0.00029995,4]
[328752073,1717765854814,-500.0,0.00029995,4]
[328752074,1717765854823,-500.0,0.00029995,4]
[328752075,1717765854832,-500.0,0.00029995,4]
[328752076,1717765854842,-500.0,0.00029995,4]
[328752077,1717765854852,-500.0,0.00029995,4]
[328752078,1717765854861,-500.0,0.00029995,4]
[328752079,1717765854870,-257.525,0.00029995,4]
[328752080,1717765854880,-500.0,0.00029995,4]
[328752081,1717765854890,-500.0,0.00029995,4]
[328752082,1717765854900,-500.0,0.00029995,4]
[328752083,1717765854909,-500.0,0.00029995,4]
[328752084,1717765854919,-500.0,0.00029995,4]
[328752085,1717765854929,-500.0,0.00029995,4]
[328752086,1717765854939,-500.0,0.00029995,4]
[328752087,1717765854949,-500.0,0.00029995,4]
[328752088,1717765854959,-398.0,0.00029995,4]
[328752089,1717765854969,-425.20630395,0.00029995,4]
[328752090,1717765854979,-500.0,0.00029995,4]
[328752091,1717765854989,-500.0,0.00029995,4]
[328752092,1717765854999,-500.0,0.00029995,4]
[328752093,1717765855008,-500.0,0.00029995,4]
[328752094,1717765855019,-500.0,0.00029995,4]
[328752095,1717765855029,-1747.74,0.00029995,4]
[328752096,1717765855038,-1747.74,0.00029995,4]
[328752097,1717765855048,-1747.74,0.00029995,4]
[328752098,1717765855057,-1747.74,0.00029995,4]
[328752099,1717765855068,-844.59,0.00029995,4]
[328752100,1717765855078,-844.59,0.00029995,4]
[328752101,1717765855087,-844.59,0.00029995,4]
[328752102,1717765855097,-844.59,0.00029995,4]
[328752103,1717765855107,-525.7,0.00029995,4]
[328752104,1717765855116,-500.0,0.00029995,4]
[328752105,1717765855126,-500.0,0.00029995,4]
[328752106,1717765855135,-183.22,0.00029995,4]
[328752107,1717765855145,-1221.95,0.00029995,4]
[328752108,1717765855154,-7299.68,0.00029995,4]
[328752109,1717765855163,-3404.37,0.00029995,4]
[328752110,1717765855173,-1013.36,0.00029995,4]
[328752111,1717765855183,-1013.36,0.00029995,4]
[328752112,1717765855193,-1013.36,0.00029995,4]
[328752113,1717765855202,-1013.36,0.00029995,4]
[328752114,1717765855211,-3314.7,0.00029995,4]
[328752115,1717765855221,-500.0,0.00029995,4]
[328752116,1717765855230,-500.0,0.00029995,4]
[328752117,1717765855240,-500.0,0.00029995,4]
[328752118,1717765855249,-500.0,0.00029995,4]
[328752119,1717765855259,-1018.45,0.00029995,4]
[328752120,1717765855271,-3209.29,0.00029995,4]
[328752121,1717765855282,-3209.29,0.00029995,4]
[328752122,1717765855292,-3209.29,0.00029995,4]
[328752123,1717765855302,-3209.29,0.00029995,4]
[328752124,1717765855314,-782.6,0.00029995,4]
[328752125,1717765855323,-782.6,0.00029995,4]